Cogmind - Beta 15 @@@ ROGUE MODE // 2025.07.20 @ 17:22:10 Player: the Result: Self-destructed Performance ------------- Evolutions (4) 2000 Regions Visited (12) 2400 Robots Destroyed (333) 1665 Value Destroyed (12369) 12369 Prototype IDs (19) 380 Alien Tech Used (0) 0 Bonus (4399) 4399 TOTAL SCORE: 23213 Bonus ------- High Alert Combat Kills 1379 Follower Combat Kills 792 Entered Garrisons 800 Used RIF Installer 1500 Friendly Fire -72 Cogmind --------- Core Integrity 354/850 Matter 247/300 Energy 29/420 System Corruption 2% Temperature Warm (191) Movement Treading (237) Ox1 Location -6/Garrison Parts ------- > --- POWER (2) -------- Particle Reactor Light Particle Reactor > --- PROPULSION (4) --- Biometal Medium Treads Armored Heavy Treads > --- UTILITY (5) ------ High-capacity Storage Unit Improved Kinecellerator Reflective Plating Advanced Remote Force Field > --- WEAPON (4) ------- Gauss Rifle Hypervelocity Gauss Cannon > --- INVENTORY (20) --- Micro Nuclear Core Medium Treads Improved Medium Treads Improved Heavy Treads Advanced Heat Sink Coolant Injector High-capacity Storage Unit Matter Compressor (250) Matter Compressor (250) Advanced Phase Shifter Reflective Plating Relay Coupler [Grunt] (35) Relay Coupler [Sentry] (31) Relay Coupler [Hunter] (20) Tractor Beam Long-range Proton Cannon Hypervelocity Gauss Cannon Heavy Shock Bomb Launcher Remote Datajack Peak State ------------ > --- POWER ------------ Light Antimatter Reactor Light Antimatter Reactor > --- PROPULSION ------- Improved Heavy Treads Improved Heavy Treads > --- UTILITY ---------- Advanced Heat Sink Coolant Injector High-capacity Storage Unit Advanced Targeting Computer Improved Shield Generator > --- WEAPON ----------- Plasma Rifle PD Laser > --- INVENTORY -------- Medium Treads Medium Treads Improved Heavy Treads Coolant Injector High-capacity Storage Unit Matter Compressor Advanced Phase Shifter Insulated Plating Relay Coupler [Sentry] Relay Coupler [Specialist] Relay Coupler [Hunter] Tractor Beam Improved Field Recycling Unit Gauss Rifle Gauss Rifle Gauss Rifle Proton Missile Launcher Remote Datajack [Rating: 93] Favorites ----------- Power Cooled Ion Engine Engine Cooled Ion Engine Power Core Enhanced Nuclear Core Reactor Light Antimatter Reactor Propulsion Light Treads Treads Light Treads Wheel Armored Huge Wheel Utility Huge Storage Unit Device Seismic Detector Storage Huge Storage Unit Processor Advanced Targeting Computer Hackware Relay Coupler [NC] Protection Improved Light Armor Plating Weapon Gauss Rifle Energy Gun Precision Beam Rifle Energy Cannon Heavy Particle Cannon Ballistic Gun Gauss Rifle Ballistic Cannon Hypervelocity Gauss Cannon Launcher Shock Bomb Launcher Special Weapon Remote Datajack Impact Weapon Great Maul Piercing Weapon Spear Build | -11 -10 -9 -8 -8 -8 -7 -7 -7 -6 -6 -6 -6 ------- Run | Yrd Mat Mat Mat Gar Mat Fac Gar Fac Fac Gar Fac Gar Slots Evolved 8 | . . 2 2 . . 2 . . 2 . . . Power 1 | . . . . . . . . . 1 . . . Propulsion 2 | . . 1 1 . . . . . . . . . Utility 3 | . . . 1 . . 1 . . 1 . . . Weapon 2 | . . 1 . . . 1 . . . . . . Parts Attached 219 | 10 11 34 23 6 17 19 18 17 22 38 1 3 Power 25 | 1 . 4 4 . 2 1 2 . 5 6 . . Engine 17 | 1 . 4 4 . 2 1 2 . 1 2 . . Core 4 | . . . . . . . . . 3 1 . . Reactor 4 | . . . . . . . . . 1 3 . . Propulsion 63 | 5 2 13 9 4 4 7 . 6 3 10 . . Treads 56 | 2 . 13 9 4 4 7 . 4 3 10 . . Leg . | . . . . . . . . . . . . . Wheel 7 | 3 2 . . . . . . 2 . . . . Hover . | . . . . . . . . . . . . . Flight . | . . . . . . . . . . . . . Utility 61 | 2 3 4 2 1 7 5 8 6 4 16 1 2 Device 31 | 1 1 2 2 . 3 2 2 2 3 11 . 2 Storage 5 | 1 2 . . . . . . 2 . . . . Processor 4 | . . . . . 1 2 . 1 . . . . Hackware 11 | . . . . . . 1 6 . . 4 . . Protection 10 | . . 2 . 1 3 . . 1 1 1 1 . Artifact . | . . . . . . . . . . . . . Weapon 70 | 2 6 13 8 1 4 6 8 5 10 6 . 1 Energy Gun 16 | 1 3 4 4 . 1 . . 1 . 2 . . Energy Cannon 2 | . . 1 . 1 . . . . . . . . Ballistic Gun 39 | 1 . 7 4 . 3 3 7 3 9 2 . . Ballistic Cannon 1 | . . . . . . . . . . . . 1 Launcher 8 | . 3 . . . . 2 . . 1 2 . . Special Weapon 2 | . . 1 . . . 1 . . . . . . Impact Weapon 1 | . . . . . . . 1 . . . . . Slashing Weapon . | . . . . . . . . . . . . . Piercing Weapon 1 | . . . . . . . . 1 . . . . Special Melee Weapon . | . . . . . . . . . . . . . Unidentified Prototypes 13 | . . 5 3 . 2 . . 1 1 1 . . Parts Lost 34 | . . . 2 . 2 9 6 2 2 6 . 5 Power 5 | . . . 1 . . . 1 . 1 2 . . Propulsion 13 | . . . . . 1 6 . 2 1 2 . 1 Utility 7 | . . . 1 . 1 . 3 . . 1 . 1 Weapon 9 | . . . . . . 3 2 . . 1 . 3 Highest Loss Streak 5 | . . . 2 . 1 5 3 1 1 4 . 2 To Critical Strikes 2 | . . . . . . 1 1 . . . . . Average Backups 19 | 3 12 24 24 25 24 23 10 9 18 18 19 18 Power 1 | . . 1 1 1 1 2 1 . 1 . 1 1 Propulsion 3 | 2 3 5 5 5 4 3 . . 1 3 3 2 Utility 6 | . 1 5 6 8 6 9 4 4 10 10 11 11 Weapon 7 | . 7 11 10 11 11 7 2 2 4 3 3 2 Tool/Special . | . . . . . . . . . . . . . Unused Backups 69 | . 3 16 5 . 4 5 11 1 5 4 1 14 Power 5 | . 1 . . . . . 1 . 1 . . 2 Propulsion 5 | . 2 . . . . . 2 . . . . 1 Utility 32 | . . 3 2 . 2 1 7 1 2 4 1 9 Weapon 27 | . . 13 3 . 2 4 1 . 2 . . 2 Tool/Special . | . . . . . . . . . . . . . Average Slot Usage (%) 96 | . 99 99 99 100 98 96 98 86 99 86 93 90 Engine 8 | . 14 11 8 9 9 7 6 7 4 3 . . Reactor 1 | . . . . . . . . . 3 2 13 13 Treads 27 | . 24 33 36 36 35 28 30 6 25 16 20 18 Device 9 | . 14 8 11 9 7 9 6 6 10 11 13 17 Storage 8 | . 14 11 9 9 9 7 2 3 6 6 6 6 Processor 2 | . . . . . . 5 7 7 6 6 6 1 Hackware 2 | . . . . . . 2 5 10 4 4 . . Protection 4 | . . 2 6 8 9 2 6 . 3 3 5 6 Energy Gun 9 | . 26 16 6 24 4 . . . . 2 . . Ballistic Gun 17 | . . 16 20 . 22 27 26 29 24 20 26 20 Peak Build Rating 93 | 7 12 22 30 32 33 41 47 50 60 93 89 93 Average Rating 37 | 4 10 19 23 31 31 37 39 44 54 74 88 90 On Entrance 36 | . 7 12 19 30 32 31 37 40 36 56 89 89 Naked Turns . | . . . . . . . . . . . . . Heaviest Build 123 | 14 92 102 103 102 111 116 117 78 104 108 112 123 Greatest Support 150 | 40 40 60 80 80 80 89 92 92 98 150 125 125 Greatest Overweight (x) 2 | . 2 1 1 1 1 1 1 2 1 1 . 1 Average Overweight (x) . | . . 1 1 1 1 1 . . . . . . Largest Inventory Capacity 25 | 8 25 25 25 25 25 25 25 20 20 20 20 20 Average Capacity 21 | 6 18 25 25 25 25 25 11 12 20 20 20 20 Most Carried 25 | 7 25 25 25 25 25 25 24 20 20 20 20 20 Average Carried 20 | 4 12 24 24 25 24 23 10 9 19 19 19 19 Final Capacity 25 | 8 25 25 25 25 25 25 5 20 20 20 20 20 Final Carried 25 | 7 25 25 25 25 25 19 5 20 20 20 20 20 Class Distribution -------------------- 40% | Scavenger-Tank 21% | Gunner 18% | Scavenger-Gunner 9% | Mutant 5% | Tank Dominant Class ---------------- Mutant | -10/Materials Gunner | -9/Materials Scavenger-Tank | -8/Materials Scavenger-Tank | -8/Garrison Scavenger-Tank | -8/Materials Scavenger-Gunner | -7/Factory Gunner | -7/Garrison Gunner | -7/Factory Scavenger-Tank | -6/Factory Scavenger-Tank | -6/Garrison Scavenger-Tank | -6/Factory Tank | -6/Garrison Resources | -11 -10 -9 -8 -8 -8 -7 -7 -7 -6 -6 -6 -6 ----------- Run | Yrd Mat Mat Mat Gar Mat Fac Gar Fac Fac Gar Fac Gar Matter Collected 12331 | 314 391 1589 1154 272 1397 923 1230 898 1325 2208 122 508 Remotely 2557 | . . 32 559 . 425 673 392 . 476 . . . Salvage Created 14536 | 184 726 2182 1729 830 1727 1091 529 751 1617 2218 80 872 Parts 726 | 13 45 126 81 32 87 66 20 23 78 91 11 53 Haulers Intercepted 18 | . 2 5 6 . 3 1 . . 1 . . . Recyclers Shooed 11 | . 1 . 2 . 2 3 . 2 1 . . . Parts Field Recycled 18 | . . . . . . . . 9 9 . . . Retrieved Matter 579 | . . . . . . . . 301 278 . . . Parts Self-Destructed . | . . . . . . . . . . . . . Prevented . | . . . . . . . . . . . . . Kills | -11 -10 -9 -8 -8 -8 -7 -7 -7 -6 -6 -6 -6 ------- Run | Yrd Mat Mat Mat Gar Mat Fac Gar Fac Fac Gar Fac Gar Combat Hostiles Destroyed 214 | . 11 37 18 23 21 20 11 4 20 28 2 19 Guns 168 | . 2 26 18 14 21 10 11 4 18 26 2 16 Cannons 4 | . . . . 1 . . . . . . . 3 AOE 37 | . 9 10 . 6 . 10 . . 2 . . . Classes Destroyed 19 | 2 7 4 1 1 . 2 . . . 1 . 1 Worker 22 | . 3 5 4 . . 5 . 2 3 . . . Builder 9 | . 1 3 1 . . 3 . . 1 . . . Tunneler 8 | 5 1 . . . 1 1 . . . . . . Hauler 18 | . 2 5 6 . 3 1 . . 1 . . . Recycler 37 | 1 3 5 5 . 10 4 . 6 3 . . . Mechanic 3 | . . 1 . . . 2 . . . . . . Operator 4 | . 2 1 . . . . . . . . 1 . Watcher 15 | . 3 5 4 . 1 . . . 2 . . . Swarmer 54 | . 6 13 . 7 7 3 2 . . 8 2 6 Cutter 4 | . . . . . . . . . . . . 4 Grunt 82 | . 5 12 12 13 7 3 7 2 8 13 . . Brawler 4 | . . 1 1 . 1 . . . . 1 . . Duelist 4 | . . 1 . . 1 1 . . . . . 1 Protector 1 | . . . . . . 1 . . . . . . Sentry 32 | . . 10 3 2 3 1 1 1 2 4 . 5 Specialist 2 | . . . . . . 1 1 . . . . . Hunter 19 | . . . 2 . 2 5 1 . 7 1 . 1 Programmer 14 | . . . . 1 . 6 . 1 3 1 . 2 Behemoth 1 | . . . . . . . . . . 1 . . Best Kill Streak 18 | 2 8 5 9 7 6 18 3 2 4 8 2 9 Combat Bots Only 9 | . 7 4 3 7 6 9 3 2 3 8 2 9 Max Kills in Single Turn 4 | 1 3 2 2 2 2 4 1 1 3 2 2 2 Gunslinging 1 | . . 1 . . . 1 . . . 1 1 1 Exploded 3 | . 3 2 . 2 . 3 . . 2 . . . Melee . | . . . . . . . . . . . . . Uniques/NPCs Destroyed . | . . . . . . . . . . . . . Combat | -11 -10 -9 -8 -8 -8 -7 -7 -7 -6 -6 -6 -6 -------- Run | Yrd Mat Mat Mat Gar Mat Fac Gar Fac Fac Gar Fac Gar Hostile Shots Fired 1287 | . 31 107 100 74 78 177 61 50 171 284 2 152 Missed 377 | . 12 28 28 26 14 67 14 23 40 76 2 47 Hits 910 | . 19 79 72 48 64 110 47 27 131 208 . 105 Melee 15 | . . 5 . . 3 . . . . 1 . 6 Projectile 895 | . 19 74 72 48 61 110 47 27 131 207 . 99 AOE 1 | . . . . . . . . . . . . 1 Critical Strikes 28 | . . 1 2 5 1 4 2 . 6 6 . 1 Part Disruptions 2 | . . . . . . . . . 1 . . 1 Damage Taken 12380 | . 284 1129 1199 707 873 1587 778 510 1576 2805 . 932 Core 1349 | . 29 180 107 80 93 102 72 190 99 354 . 43 Absorbed by Shields 1098 | . . . . . . . . . 295 216 . 587 Reduced by Siege Mode 256 | . . . . . . . . . . 246 . 10 Ignored by Resistances 580 | . . . . . 7 163 . . 293 66 . 51 Regen/Repaired (Parts) 200 | . 36 62 . . . . . . 102 . . . Core Remaining (%) 68 | 100 88 55 . . 49 . . 48 . . . . Volleys Fired 778 | 14 44 112 80 47 89 55 65 42 83 112 3 32 Largest 4 | 2 2 3 3 3 3 4 4 4 4 4 4 4 Hottest 197 | 60 90 168 183 197 183 100 112 114 112 159 112 135 Shots Fired 2227 | 28 75 316 241 128 264 159 176 113 281 326 12 108 Gun 2098 | 28 66 306 241 113 264 144 153 96 267 317 12 91 Cannon 27 | . . . . 10 . . . . . . . 17 Launcher 39 | . 9 9 . 5 . 10 5 . 1 . . . Special 63 | . . 1 . . . 5 18 17 13 9 . . Kinetic 1675 | 14 1 183 186 . 234 144 153 96 267 277 12 108 Thermal 381 | . 9 124 55 123 30 . . . . 40 . . Explosive 29 | . 9 9 . 5 . 6 . . . . . . Electromagnetic 80 | 14 56 . . . . 4 5 . 1 . . . Robot Hit Streak 33 | 4 6 15 24 28 11 16 19 9 14 33 3 20 Robot Miss Streak 8 | 8 3 6 8 2 8 2 4 6 3 3 4 4 Penetration Max 1 | . . . . . . . . 1 1 1 1 1 Secondary Targets 33 | . . 3 4 4 5 3 1 1 3 5 1 3 Max Gunslinging Chain 2 | . . 2 1 1 1 1 1 1 1 1 1 1 Autonomous 30 | . . . . . . . . . . 30 . . Shots Hit Robots 1365 | 14 47 187 165 84 127 95 97 68 183 234 4 60 Core Hits 613 | 8 39 80 72 37 59 67 28 18 73 93 4 35 Critical Kills 9 | . . . . . 2 . 1 . 1 2 . 3 Critical Parts Destroyed 12 | . . . . . . 2 2 . 4 1 . 3 Critical Strikes 47 | . . 4 8 9 2 2 3 . 5 8 . 6 Burn 26 | . . 4 8 9 . . . . . 5 . . Destroy 21 | . . . . . 2 2 3 . 5 3 . 6 Melee Attacks 10 | . . . . . . . 3 4 3 . . . Impact 3 | . . . . . . . 3 . . . . . Slashing . | . . . . . . . . . . . . . Piercing 7 | . . . . . . . . 4 3 . . . Sneak Attacks 1 | . . . . . . . . 1 . . . . Combat Hostiles . | . . . . . . . . . . . . . Follow-up Attacks . | . . . . . . . . . . . . . Damage Inflicted 29999 | 223 1529 3809 2818 1767 2214 3832 1683 1232 4256 5113 101 1422 Guns 24724 | 149 635 3072 2818 1324 2214 1452 1532 1166 3868 5113 101 1280 Cannons 244 | . . . . 102 . . . . . . . 142 Explosions 4943 | 74 894 737 . 341 . 2380 151 . 366 . . . Melee 66 | . . . . . . . . 66 . . . . Ramming 22 | . . . . . . . . . 22 . . . Kinetic 19196 | 42 . 1885 2109 . 1953 1452 1532 1166 3868 3666 101 1422 Thermal 5982 | 74 261 1187 709 1426 261 347 . . 270 1447 . . Explosive 3676 | . 684 737 . 341 . 1828 . . 86 . . . Electromagnetic 1057 | 107 584 . . . . 205 151 . 10 . . . Impact . | . . . . . . . . . . . . . Slashing . | . . . . . . . . . . . . . Piercing 66 | . . . . . . . . 66 . . . . Highest Corruption 11 | . . . 5 6 11 4 5 6 1 1 1 2 Average Corruption 4 | . . . 4 5 8 2 4 5 1 1 1 1 Corruption Purged . | . . . . . . . . . . . . . Corruption Blocked . | . . . . . . . . . . . . . Effects 222 | . . . 11 52 49 7 49 28 2 17 2 5 Message Errors 43 | . . . 1 8 9 1 13 6 . 4 . 1 Matter Fused 52 | . . . 4 17 10 2 5 5 . 6 1 2 Heat Flow Errors 31 | . . . . 10 8 . 7 5 1 . . . Energy Discharges 19 | . . . . 2 5 2 3 4 1 . . 2 Parts Rejected 2 | . . . 1 . 1 . . . . . . . Parts Fused 1 | . . . . . . . 1 . . . . . Data Loss (minor) 30 | . . . 4 7 4 2 8 4 . 1 . . Data Loss (major) 12 | . . . . 3 2 . 4 1 . 2 . . Misfires 12 | . . . 1 3 2 . 1 3 . 2 . . Alerts 8 | . . . . . 2 . 3 . . 2 1 . Misdirections 1 | . . . . . 1 . . . . . . . Weapon Failures 11 | . . . . 2 5 . 4 . . . . . Overload Shots . | . . . . . . . . . . . . . Overflow Damage 491 | . 27 31 . 35 . 190 . 65 143 . . . Projectiles . | . . . . . . . . . . . . . Explosions 426 | . 27 31 . 35 . 190 . . 143 . . . Melee 65 | . . . . . . . . 65 . . . . Knockbacks 2 | . . . . . . . . . . . . 2 Impact . | . . . . . . . . . . . . . Kinetic 2 | . . . . . . . . . . . . 2 Secondary . | . . . . . . . . . . . . . Self-Inflicted Damage 376 | . 65 82 . 30 . . 42 . 157 . . . Shots 11 | . 3 3 . 1 . . 2 . 2 . . . Rammed 1 | . . . . . . . . . 1 . . . Targets Rammed 1 | . . . . . . . . . 1 . . . Kicked . | . . . . . . . . . . . . . Crushed . | . . . . . . . . . . . . . Highest Temperature 485 | 40 309 308 250 485 418 376 252 357 464 300 . 196 Average Temperature 104 | 13 77 69 69 147 131 88 93 83 143 112 . 42 Received Heat Transfer 3326 | . 75 273 495 414 252 132 261 54 311 960 . 99 Effects 37 | . 1 1 . 10 5 2 . 1 14 3 . . Shutdowns 10 | . . . . 2 1 . . 1 6 . . . Energy Bleed 6 | . 1 1 . 2 2 . . . . . . . Interference 10 | . . . . 2 . 2 . . 3 3 . . Matter Decay 2 | . . . . . 1 . . . 1 . . . Short Circuit 1 | . . . . . . . . . 1 . . . Damage (minor) 2 | . . . . 1 1 . . . . . . . Damage (major) 6 | . . . . 3 . . . . 3 . . . Siege Activations 4 | . . . . . . . . . . 3 . 1 Total Turns 107 | . . . . . . . . . . 95 . 12 Longest Duration 66 | . . . . . . . . . . 66 . 12 Martial Activations . | . . . . . . . . . . . . . Shielding Activations . | . . . . . . . . . . . . . Robots Disrupted . | . . . . . . . . . . . . . Combat Hostiles . | . . . . . . . . . . . . . Robots Corrupted . | . . . . . . . . . . . . . Combat Hostiles . | . . . . . . . . . . . . . Parts Fried 1 | 1 . . . . . . . . . . . . Impact Corruptions 1 | . . . . . . . . . 1 . . . Robots Melted 6 | . . 2 . 2 . . . . . 2 . . Combat Hostiles 5 | . . 1 . 2 . . . . . 2 . . Parts Melted 34 | . . 6 6 13 1 . 1 . . 7 . . Heat Transferred 12537 | 150 348 2812 2109 3663 555 300 . . 150 2450 . . Parts Sabotaged . | . . . . . . . . . . . . . Parts Stolen . | . . . . . . . . . . . . . Parts Stripped . | . . . . . . . . . . . . . Power Chain Reactions 9 | 2 6 . . . . . . . 1 . . . Alert | -11 -10 -9 -8 -8 -8 -7 -7 -7 -6 -6 -6 -6 ------- Run | Yrd Mat Mat Mat Gar Mat Fac Gar Fac Fac Gar Fac Gar Maximum Alert Level 4 | . 1 2 1 3 2 2 4 2 1 4 3 3 Low Security (%) 35 | 100 87 35 98 12 . 70 . . 67 . . . Level 1 19 | . 12 27 1 21 . 23 5 54 32 28 . . Level 2 32 | . . 37 . 40 99 5 49 45 . 27 54 85 Level 3 8 | . . . . 25 . . 28 . . 25 45 14 Level 4 3 | . . . . . . . 15 . . 18 . . Level 5 . | . . . . . . . . . . . . . High Security . | . . . . . . . . . . . . . Max Security . | . . . . . . . . . . . . . Peak Influence 1363 | 10 252 608 255 995 677 485 1237 648 332 1363 731 891 Initial 715 | . . . 255 80 484 207 326 648 179 230 715 476 Average 384 | 1 88 280 48 530 502 192 770 425 178 721 687 675 Influence Increases 8645 | 30 496 1216 593 915 656 748 1091 354 732 1273 86 455 Destroy 0b10 Robot/C 4720 | . 220 740 360 460 420 380 520 200 400 600 40 380 Destroy 0b10 Robot/NC 635 | 30 75 125 100 . 75 85 . 55 50 30 5 5 Destroy Leader 898 | . 60 210 100 30 108 82 30 62 126 50 10 30 Allied During Kill 84 | . . . . . . 2 58 21 . 3 . . Successful Hack 186 | . 14 23 . 14 2 14 7 14 54 14 30 . Disable Machine 315 | . 75 45 . . . 165 . . 30 . . . Anti-Garrison Action 1200 | . . . . 350 . . 350 . . 500 . . Destroy Structure 337 | . 52 73 3 31 6 20 36 2 57 46 1 10 Lose Combat Pursuer 270 | . . . 30 30 45 . 90 . 15 30 . 30 Influence Decreases 7764 | 30 496 611 1074 44 1195 737 321 1225 769 239 768 255 Entered New Map 3023 | . . . 350 44 511 249 141 589 187 99 648 205 Time Decay 3626 | 30 496 611 449 . 514 398 . 446 562 . 120 . Lost Part 340 | . . . 20 . 20 90 60 20 20 60 . 50 Lost Ally 220 | . . . . . . . 120 20 . 80 . . Purge Threat 555 | . . . 255 . 150 . . 150 . . . . Squads Dispatched 27 | . 3 5 2 . 4 4 . 2 7 . . . Investigation 1 | . 1 . . . . . . . . . . . Extermination 6 | . . . . . . 2 . 2 2 . . . Reinforcement 16 | . 2 3 2 . 3 2 . . 4 . . . Assault 3 | . . 2 . . 1 . . . . . . . Garrison 1 | . . . . . . . . . 1 . . . Intercept . | . . . . . . . . . . . . . Searches Triggered . | . . . . . . . . . . . . . Construction Impeded 2 | . . . . . . 1 . . 1 . . . Haulers Reinforced 1 | . . . . . . . . . 1 . . . Active Scanning Responses . | . . . . . . . . . . . . . Cargo Convoy Interrupts 1 | . . . . . . 1 . . . . . . Stealth | -11 -10 -9 -8 -8 -8 -7 -7 -7 -6 -6 -6 -6 --------- Run | Yrd Mat Mat Mat Gar Mat Fac Gar Fac Fac Gar Fac Gar Distress Signals 13 | . . 3 3 . 4 1 . . 2 . . . Communications Jammed . | . . . . . . . . . . . . . Distress Signals . | . . . . . . . . . . . . . Times Spotted 330 | . 14 49 30 23 42 31 33 18 31 34 3 22 Peak Tracking Total 10 | . 3 6 5 4 7 10 5 3 5 8 2 9 Tactical Retreats 16 | . . . 2 1 3 . 5 . 1 2 . 2 Traps | -11 -10 -9 -8 -8 -8 -7 -7 -7 -6 -6 -6 -6 ------- Run | Yrd Mat Mat Mat Gar Mat Fac Gar Fac Fac Gar Fac Gar Traps Triggered 26 | . 2 2 4 5 . . 4 4 . 1 . 4 Indirectly . | . . . . . . . . . . . . . Trap Hack Attempts . | . . . . . . . . . . . . . Triggered . | . . . . . . . . . . . . . Disarmed . | . . . . . . . . . . . . . Reprogrammed . | . . . . . . . . . . . . . Reused . | . . . . . . . . . . . . . Traps Extracted . | . . . . . . . . . . . . . Installed . | . . . . . . . . . . . . . Triggered . | . . . . . . . . . . . . . Machines | -11 -10 -9 -8 -8 -8 -7 -7 -7 -6 -6 -6 -6 ---------- Run | Yrd Mat Mat Mat Gar Mat Fac Gar Fac Fac Gar Fac Gar Machines Disabled 35 | . 5 3 . 5 . 11 4 . 2 5 . . Max in Single Turn 5 | . 2 1 . 1 . 5 1 . 2 1 . . Garrison Relay 13 | . . . . 5 . . 4 . . 4 . . Machines Repaired . | . . . . . . . . . . . . . Machines Dismantled . | . . . . . . . . . . . . . Machines Sabotaged . | . . . . . . . . . . . . . Overloaded Fab Kills . | . . . . . . . . . . . . . Hacking | -11 -10 -9 -8 -8 -8 -7 -7 -7 -6 -6 -6 -6 --------- Run | Yrd Mat Mat Mat Gar Mat Fac Gar Fac Fac Gar Fac Gar Machines Accessed 48 | . 5 10 5 4 3 2 3 6 6 1 2 1 Terminals 36 | . 4 7 4 4 2 1 3 4 4 1 1 1 Fabricators 3 | . . . . . . . . 2 1 . . . Repair Stations 2 | . 1 1 . . . . . . . . . . Recycling Units 1 | . . 1 . . . . . . . . . . Scanalyzers 2 | . . 1 . . 1 . . . . . . . Garrison Access 4 | . . . 1 . . 1 . . 1 . 1 . Total Hacks 109 | . 14 29 14 6 8 3 9 10 10 1 4 1 Successful 51 | . 8 17 6 1 3 2 1 3 5 1 3 1 Failed 56 | . 5 11 8 5 5 1 8 7 5 . 1 . Catastrophic 11 | . 1 . 2 1 2 . 2 3 . . . . Database Lockouts 2 | . 1 1 . . . . . . . . . . Manual 22 | . 7 6 7 . 1 1 . . . . . . Terminals 86 | . 12 21 12 6 4 2 9 7 8 1 3 1 Fabricators 4 | . . . . . . . . 3 1 . . . Repair Stations 5 | . 2 3 . . . . . . . . . . Recycling Units 1 | . . 1 . . . . . . . . . . Scanalyzers 8 | . . 4 . . 4 . . . . . . . Garrison Access 5 | . . . 2 . . 1 . . 1 . 1 . Terminal Hacks 32 | . 5 10 4 1 1 1 1 2 3 1 2 1 Part Schematic 1 | . . . . . . . . . 1 . . . Robot Analysis 4 | . 2 1 . . . . . . . . 1 . Prototype ID Bank 4 | . . 3 1 . . . . . . . . . Open Door 1 | . . . . . . . 1 . . . . . Branch Access Points 1 | . . 1 . . . . . . . . . . Emergency Access Points 4 | . . . . 1 . . . 1 . 1 . 1 Garrison Index 1 | . . . . . . . . . 1 . . . Unreport Threat 4 | . . . 2 . 1 . . 1 . . . . Locate Traps 2 | . . 2 . . . . . . . . . . Hauler Manifests 4 | . 1 2 1 . . . . . . . . . Registered Components 1 | . 1 . . . . . . . . . . . Registered Prototypes 1 | . . 1 . . . . . . . . . . Zone Layout 4 | . 1 . . . . 1 . . 1 . 1 . Fabricator Hacks 2 | . . . . . . . . 1 1 . . . Network Status 1 | . . . . . . . . 1 . . . . Build 1 | . . . . . . . . . 1 . . . Repair Station Hacks 4 | . 2 2 . . . . . . . . . . Scan Component 2 | . 1 1 . . . . . . . . . . Repair 2 | . 1 1 . . . . . . . . . . Recycling Unit Hacks 1 | . . 1 . . . . . . . . . . Retrieve Components 1 | . . 1 . . . . . . . . . . Scanalyzer 6 | . . 4 . . 2 . . . . . . . Insert Component 3 | . . 2 . . 1 . . . . . . . Analyze 3 | . . 2 . . 1 . . . . . . . Garrison Access Hacks 4 | . . . 1 . . 1 . . 1 . 1 . Unlock Access 4 | . . . 1 . . 1 . . 1 . 1 . Unauthorized Hacks 2 | . 1 . 1 . . . . . . . . . Terminals 2 | . 1 . 1 . . . . . . . . . Botnet 2 | . 1 . 1 . . . . . . . . . Fabricators . | . . . . . . . . . . . . . Repair Stations . | . . . . . . . . . . . . . Recycling Units . | . . . . . . . . . . . . . Scanalyzers . | . . . . . . . . . . . . . Garrison Access . | . . . . . . . . . . . . . Data Cores Recovered 1 | . . . . . . . . . . . 1 . Used . | . . . . . . . . . . . . . Hacking Detections 38 | . 3 8 5 4 3 1 3 6 4 . 1 . Full Trace Events 1 | . . . . . . . 1 . . . . . Feedback Events . | . . . . . . . . . . . . . Feedback Blocked . | . . . . . . . . . . . . . Robot Schematics Acquired . | . . . . . . . . . . . . . Robots Built . | . . . . . . . . . . . . . Authchips . | . . . . . . . . . . . . . Time . | . . . . . . . . . . . . . Total Robot Build Rating . | . . . . . . . . . . . . . Part Schematics Acquired 4 | . . 2 . . 1 . . . 1 . . . Parts Built 2 | . . . . . . . . . 2 . . . Authchips . | . . . . . . . . . . . . . Time 58 | . . . . . . . . . 58 . . . Total Part Build Rating 14 | . . . . . . . . . 14 . . . Parts Repaired 2 | . 1 1 . . . . . . . . . . Time 83 | . 32 51 . . . . . . . . . . Parts Recycled . | . . . . . . . . . . . . . Recycled Matter . | . . . . . . . . . . . . . Retrieved Matter . | . . . . . . . . . . . . . Retrieved Components 9 | . . 9 . . . . . . . . . . Parts Scanalyzed 3 | . . 2 . . 1 . . . . . . . Part Schematics Acquired 3 | . . 2 . . 1 . . . . . . . Parts Damaged 1 | . . 1 . . . . . . . . . . Bothacking | -11 -10 -9 -8 -8 -8 -7 -7 -7 -6 -6 -6 -6 ------------ Run | Yrd Mat Mat Mat Gar Mat Fac Gar Fac Fac Gar Fac Gar Used RIF Installer 3 | . . . . 1 . . 1 . . 1 . . Coupler Efficiency 1 | . . . . . . . 1 . . . . . Program Shield 1 | . . . . . . . . . . 1 . . Robots Hacked 19 | . . . . . . 4 3 3 4 5 . . Non-combat 8 | . . . . . . 3 . 1 4 . . . Combat 11 | . . . . . . 1 3 2 . 5 . . Robot Hacks Applied 19 | . . . . . . 4 3 3 4 5 . . parse_system 2 | . . . . . . 2 . . . . . . find_chute 1 | . . . . . . 1 . . . . . . map_walls 1 | . . . . . . . . . 1 . . . drop_inventory 1 | . . . . . . . . . 1 . . . map_route 2 | . . . . . . . . 1 1 . . . overwrite_iff 2 | . . . . . . 1 1 . . . . . formatsys_low 1 | . . . . . . . . . 1 . . . formatsys_high 9 | . . . . . . . 2 2 . 5 . . Relay Couplers Released 65 | . . . . 25 . 4 17 . . 19 . . Machine Destruction 57 | . . . . 21 . . 17 . . 19 . . Programmers 8 | . . . . 4 . 4 . . . . . . Attached 11 | . . . . . . 1 6 . . 4 . . Fabnet Peak Effective % . | . . . . . . . . . . . . . Robots Rewired 3 | . . . . . . . 3 . . . . . Allies Hacked . | . . . . . . . . . . . . . Hacks Repelled . | . . . . . . . . . . . . . Allies | -11 -10 -9 -8 -8 -8 -7 -7 -7 -6 -6 -6 -6 -------- Run | Yrd Mat Mat Mat Gar Mat Fac Gar Fac Fac Gar Fac Gar Total Allies 17 | . . . . . . 1 8 2 1 5 . . Largest Group 4 | . . . . . . 1 4 2 1 3 . . Highest-Rated Group 104 | . . . . . . 16 84 64 14 104 . . Highest-Rated Ally 46 | . . . . . . 16 32 32 14 46 . . Total Orders 2 | . . . . . . . . 1 1 . . . STAY 1 | . . . . . . . . 1 . . . . AID 1 | . . . . . . . . . 1 . . . Ally Attacks 100 | . . . . . . 1 59 23 . 17 . . Total Damage 2671 | . . . . . . 14 1495 664 . 498 . . Kills 26 | . . . . . . . 15 9 . 2 . . Allies Corrupted . | . . . . . . . . . . . . . Allies Melted . | . . . . . . . . . . . . . Intel | -11 -10 -9 -8 -8 -8 -7 -7 -7 -6 -6 -6 -6 ------- Run | Yrd Mat Mat Mat Gar Mat Fac Gar Fac Fac Gar Fac Gar Active Infowar (turns) 8489 | 16 1631 1792 1652 24 526 848 1 871 1126 2 . . Seismic 8489 | 16 1631 1792 1652 24 526 848 1 871 1126 2 . . Robot Analysis Total 4 | . 2 1 . . . . . . . . 1 . Derelict Logs Recovered . | . . . . . . . . . . . . . Drone Launches . | . . . . . . . . . . . . . Drone Recoveries . | . . . . . . . . . . . . . Exploration | -11 -10 -9 -8 -8 -8 -7 -7 -7 -6 -6 -6 -6 ------------- Run | Yrd Mat Mat Mat Gar Mat Fac Gar Fac Fac Gar Fac Gar Turns Passed 18695 | 140 1631 3718 1786 1756 1416 944 1774 1106 1678 2125 258 363 Spaces Moved 7571 | 90 663 1310 559 636 452 320 849 692 727 973 152 148 Core 6 | 6 . . . . . . . . . . . . Treads 6795 | 10 549 1310 559 636 452 320 849 110 727 973 152 148 Legs . | . . . . . . . . . . . . . Wheels 770 | 74 114 . . . . . . 582 . . . . Hover . | . . . . . . . . . . . . . Flight . | . . . . . . . . . . . . . Fastest Speed 50 | 50 80 240 240 240 240 240 160 100 160 156 158 158 Average Speed 198 | 88 209 240 240 240 240 240 179 114 177 163 158 161 Slowest Speed 320 | 160 320 240 240 240 240 240 240 160 240 240 158 237 Overloaded Moves . | . . . . . . . . . . . . . Propulsion Burnouts . | . . . . . . . . . . . . . Robots Hopped . | . . . . . . . . . . . . . Potential Cave-ins . | . . . . . . . . . . . . . Cave-ins Triggered . | . . . . . . . . . . . . . Exploration Rate (%) 43 | 5 97 95 51 79 36 10 69 19 16 63 5 20 Regions Visited 12 Branch Regions . Pre-discovered Areas . | . . . . . . . . . . . . . Known Exits Taken 4 | . . . 1 . . 1 . . 1 . 1 . Unknown Exits Taken 5 | 1 1 1 . . 1 . . 1 . . . . Scrap Searched . | . . . . . . . . . . . . . Spaces Dug 7 | . . 1 . . . . . . 6 . . . Terrain Destroyed 253 | . 56 63 . 26 . 23 4 1 72 5 . 3 Melee 2 | . . . . . . . . . 2 . . . Projectile 17 | . . 1 . . . . 3 1 5 4 . 3 AOE 230 | . 56 62 . 26 . 23 . . 63 . . . Terrain Rammed . | . . . . . . . . . . . . . Walls Destroyed . | . . . . . . . . . . . . . Machines Disabled . | . . . . . . . . . . . . . Actions | -11 -10 -9 -8 -8 -8 -7 -7 -7 -6 -6 -6 -6 --------- Run | Yrd Mat Mat Mat Gar Mat Fac Gar Fac Fac Gar Fac Gar Total 9947 | 121 833 1694 854 767 678 443 1019 918 948 1306 163 203 Wait 747 | . 61 135 140 60 65 5 27 103 45 98 . 8 Move 7562 | 89 662 1309 559 635 451 320 848 691 727 972 151 148 Hop . | . . . . . . . . . . . . . Pick Up 173 | 5 29 28 14 . 13 13 12 16 15 19 3 6 Fast Attach 78 | 9 3 10 2 . 4 3 8 11 3 24 1 . Attach 54 | . . 4 7 . 4 10 9 3 6 8 . 3 Detach 10 | 2 . 2 . . . 1 1 3 . 1 . . Swap 283 | 1 17 48 29 11 32 20 23 34 38 27 1 2 Drop 235 | 1 17 46 23 4 20 16 17 11 27 45 4 4 Fire 778 | 14 44 112 80 47 89 55 65 42 83 112 3 32 Melee 10 | . . . . . . . 3 4 3 . . . Ram . | . . . . . . . . . . . . . Kick . | . . . . . . . . . . . . . Crush 1 | . . . . . . . . . 1 . . . Escape Stasis 16 | . . . . 10 . . 6 . . . . . Rewire . | . . . . . . . . . . . . . Trap . | . . . . . . . . . . . . . Miscellaneous . | . . . . . . . . . . . . . Route ------- -11/Scrapyard -10/Materials (discovered 5 exits: *Mat x3 / [*Min] / [*Sub]) -9/Materials (discovered 5 exits: *Mat x3 / *Min x2) -8/Materials (discovered 2 exits: *Fac / Gar) -8/Garrison (discovered 3 exits: *Mat x3) -8/Materials -7/Factory -7/Garrison (discovered 4 exits: *Fac x4) -7/Factory (discovered 2 exits: *Fac / [*Sto]) -6/Factory -6/Garrison (discovered 3 exits: *Fac x3) -6/Factory -6/Garrison History --------- Turn | Location | Event 7 | -11/Scrapyard | Discovered new exit (range 14) 141 | -11/Scrapyard | Entered Materials 304 | -10/Materials | Build established: Mutant 311 | -10/Materials | Destroyed 7 combat bots 388 | -10/Materials | Discovered new exit (range 4) 465 | -10/Materials | Discovered new exit (range 13) 596 | -10/Materials | Discovered new exit (range 8) 787 | -10/Materials | Discovered new exit (range 7) 1001 | -10/Materials | Discovered new exit (range 4) 1062 | -10/Materials | Repaired EM Shotgun 1235 | -10/Materials | Central database locked down 1772 | -10/Materials | Entered another Materials area 1772 | -9/Materials | Evolved 2 slots: Propulsion x1, Weapon x1 1922 | -9/Materials | Identified exit to Mines 2549 | -9/Materials | Build established: Gunner 3310 | -9/Materials | Discovered new exit (range 11) 3403 | -9/Materials | Central database locked down 3532 | -9/Materials | Repaired Imp. Medium Laser 3852 | -9/Materials | Build established: Scavenger-Gunner 4293 | -9/Materials | Build established: Gunner 4658 | -9/Materials | Discovered new exit (range 9) 4972 | -9/Materials | First assault squad dispatched 5357 | -9/Materials | Build established: Tank 5462 | -9/Materials | Discovered new exit (range 13) 5490 | -9/Materials | Entered another Materials area 5490 | -8/Materials | Evolved 2 slots: Propulsion x1, Utility x1 6179 | -8/Materials | Build established: Scavenger-Tank 6844 | -8/Materials | Discovered new exit (range 5) 7146 | -8/Materials | Build established: Scavenger-Gunner 7276 | -8/Materials | Identified exit to Garrison 7276 | -8/Materials | Entered Garrison 7300 | -8/Garrison | Triggered checkpoint 7362 | -8/Garrison | Garrison Relay disabled 7603 | -8/Garrison | Build established: Scavenger-Tank 7845 | -8/Garrison | Triggered checkpoint 7908 | -8/Garrison | Destroyed 7 combat bots 7990 | -8/Garrison | Triggered checkpoint 8075 | -8/Garrison | Garrison Relay disabled 8099 | -8/Garrison | Garrison Relay disabled 8196 | -8/Garrison | Discovered new exit (range 9) 8441 | -8/Garrison | Installed Relay Interface Framework 8457 | -8/Garrison | Discovered new exit (range 12) 8518 | -8/Garrison | Triggered checkpoint 8588 | -8/Garrison | Garrison Relay disabled 8688 | -8/Garrison | Triggered checkpoint 8838 | -8/Garrison | Garrison Relay disabled 8999 | -8/Garrison | Discovered new exit (range 12) 9032 | -8/Garrison | Entered Materials 9433 | -8/Materials | Discovered new exit (range 15) 9832 | -8/Materials | First assault squad dispatched 9867 | -8/Materials | System corruption reached 10% 9872 | -8/Materials | Core integrity fell below 50% 10448 | -8/Materials | Entered Factory 10448 | -7/Factory | Evolved 2 slots: Utility x1, Weapon x1 11040 | -7/Factory | Lost 3 parts (2n1w) 11063 | -7/Factory | Build established: Scavenger-Gunner 11151 | -7/Factory | Cargo convoy interrupted 11196 | -7/Factory | Destroyed 9 combat bots 11204 | -7/Factory | Lost 5 parts (3n2w) 11392 | -7/Factory | Identified exit to Garrison 11392 | -7/Factory | Entered Garrison 11452 | -7/Garrison | Triggered checkpoint 11497 | -7/Garrison | Garrison Relay disabled 11680 | -7/Garrison | Rescued a captive Derelict 11682 | -7/Garrison | Rescued a captive Derelict 11772 | -7/Garrison | Triggered checkpoint 11781 | -7/Garrison | Triggered checkpoint 11817 | -7/Garrison | Build established: Bothacker-Gunner 11944 | -7/Garrison | Triggered checkpoint 11996 | -7/Garrison | Lost 3 parts (1p2u) 12017 | -7/Garrison | Garrison Relay disabled 12073 | -7/Garrison | Expanded RIF knowledge: Coupler Efficiency 12097 | -7/Garrison | Discovered new exit (range 3) 12358 | -7/Garrison | Discovered new exit (range 13) 12378 | -7/Garrison | Triggered checkpoint 12400 | -7/Garrison | Discovered new exit (range 5) 12508 | -7/Garrison | Triggered checkpoint 12544 | -7/Garrison | Garrison Relay disabled 12552 | -7/Garrison | Triggered checkpoint 12812 | -7/Garrison | Build established: Gunner 12868 | -7/Garrison | Triggered checkpoint 12918 | -7/Garrison | Garrison Relay disabled 12965 | -7/Garrison | Discovered new exit (range 12) 13166 | -7/Garrison | Entered Factory 13315 | -7/Factory | Discovered new exit (range 16) 14041 | -7/Factory | Discovered new exit (range 15) 14272 | -7/Factory | Core integrity fell below 50% 14272 | -7/Factory | Entered another Factory area 14272 | -6/Factory | Evolved 2 slots: Power x1, Utility x1 14355 | -6/Factory | Build established: Scavenger-Gunner 14818 | -6/Factory | Fabricated Lgt. Antimatter Reactor? 15234 | -6/Factory | Build established: Scavenger-Tank 15698 | -6/Factory | P-60 Hacker assimilated allied Machinist 5a 15883 | -6/Factory | Garrison activated, responded to threat 15950 | -6/Factory | Identified exit to Garrison 15950 | -6/Factory | Entered Garrison 16426 | -6/Garrison | Garrison Relay disabled 16454 | -6/Garrison | Triggered checkpoint 16530 | -6/Garrison | Spotted B-75 Beast 16534 | -6/Garrison | Triggered checkpoint 16548 | -6/Garrison | Triggered checkpoint 16551 | -6/Garrison | Destroyed B-75 Beast 16623 | -6/Garrison | Destroyed 8 combat bots 16629 | -6/Garrison | Lost 4 parts (2p1u1w) 16940 | -6/Garrison | Expanded RIF knowledge: Program Shield 16975 | -6/Garrison | Discovered new exit (range 10) 17004 | -6/Garrison | Triggered checkpoint 17050 | -6/Garrison | Garrison Relay disabled 17140 | -6/Garrison | Triggered checkpoint 17342 | -6/Garrison | Discovered new exit (range 8) 17392 | -6/Garrison | Triggered checkpoint 17409 | -6/Garrison | Garrison Relay disabled 17654 | -6/Garrison | Triggered checkpoint 17719 | -6/Garrison | Garrison Relay disabled 17772 | -6/Garrison | Triggered checkpoint 17778 | -6/Garrison | Discovered new exit (range 14) 17882 | -6/Garrison | Core integrity fell below 50% 17911 | -6/Garrison | Lost 3 allies 18075 | -6/Garrison | Entered Factory 18320 | -6/Factory | Identified exit to Garrison 18333 | -6/Factory | Entered Garrison 18412 | -6/Garrison | Destroyed 8 combat bots 18644 | -6/Garrison | Triggered checkpoint 18644 | -6/Garrison | Triggered checkpoint 18660 | -6/Garrison | Build established: Tank 18696 | -6/Garrison | Self-destructed Last Messages --------------- 18668_ Acquired 30 matter. 18677_ Acquired 15 matter. 18682_ Slug penetrates P-60 Hacker. 18683_ Acquired 1 matter. 18685_ Imp. Cooling System destroyed. 18685_ Slug penetrates P-60 Hacker. 18685_ P-60 Hacker destroyed. 18685_ Slug penetrates Reinforced Barrier. 18685_ HV Slug penetrates Wall. 18689_ Slug penetrates G-50 Soldier. 18689_ G-50 Soldier suffers critical hit (Destroy). 18689_ Destroyed Unknown Leg. 18692_ Slug penetrates Reinforced Barrier. 18692_ Slug penetrates G-50 Soldier. 18692_ G-50 Soldier suffers critical hit (Destroy). 18692_ Destroyed Unknown Leg. 18692_ G-50 Soldier knocked back. 18692_ Gauss Rifle destroyed. Map ----- +----------------------------------------------------+ | ??????????????????????????????# #?????# #?????#!#? | | ??????????????????????????????# #?????# #????## ## | | ??????????????????????????????# #?????# #???## ! # | | ??????????????????????????????# #?????# #???# =## | | ??????????????????????????????# #?????# #???# # | | ??????????????????????????????#^#?????#^#???# ## | | ???????????????????????????##?# #?????#^#???###= | | ?????????????????????### ###T##+#######+##### # | | ?????????????????????# !%[ /!/== | | ?????????????????????# [ % ! / | | ?????????????????????# % = | | ?????????????????????# #######+"######+######### | | ?????????????????????# ???????# #??????????????? | | ?+??+????????????????# ????????# #?????+????????? | | ???????????+?????????# ??####### #??????????????? | | ?????????????????????# ??+ #####"""###????? | | ?????????????????????# ?####### | | ?????????????????????# ???????# ##### ###????? | | ?????????????????"""## ???????# #??????????????? | | ??????+??????????? ?####### #??????????????? | | ?+????????????????? + ==[= #??????????????? | | ???????????????????? + [[= #??????????????? | | ???????????????# ????# ####*#####??????????????? | | ??????????# ## ## #### #??????????????????? | | ??????????= =%%![=#??????????????????? | | ??????????% @=####??????????????????? | | ??????????% =[#?????????????????????? | | ?????????? [#?????????????????????? | | ??????????? ## ## ###?????????????????????? | | ???????????????# ??# ????????????????????????? | | ?????????????? ??? ????????????????????+???? | | ???????????? ???? ?????????+??????????????? | | ?????????????????? ????+???????????????????? | | ?????????????????"""## #????????????????????????? | | ?????????????????????# ?????????????????????????? | | ????????????????+??+?#|p?????????????????????+???? | | ?????????????????????#%=?????????????????????????? | | ????+?????+???+??????+g[+??????????????+?????????? | | ?????????????????????# %???????+?????????????????? | | ?????????????????????# ??????????????????????????? | | ?????????????????????????????????????????????????? | | ?????????????????????????????????????????????????? | | ?????????????????????????????????????????????????? | | ?????????????????????????????????????????????????? | | ????????+????????????????????????????????????????? | | ?????????????????????????????????????????????????? | | ?????????????????????????????????????????????????+ | | ?+????+??????????????????????????????????????????? | | ?????????????????????????????????????????????????? | | ?????????????????????????????????????????????????? | +----------------------------------------------------+ Best States ------------- Heat Dissipation 64 Coolant Potential 130 Energy Generation 41 Energy Capacity 540 Matter Stores 300 Matter Capacity 300 Sight Range 16 Terrain Scan Density 10 Armor Coverage 450 Resistance: KI 30 Resistance: TH 15 Resistance: EM 15 Weapon Cycling 15 Phase Shifting 15 Evasion (%) 55 Targeting Accuracy 8 Armor Integrity Analysis 30 Recoil Reduction 4 Kinecelleration 40 Salvage Targeting 2 Relay Coupler Types 2 Relay Coupler Value 68 Item Schematics ----------------- Autogun | -9/Materials | Scanalyzed Beam Rifle | -9/Materials | Scanalyzed Gauss Rifle | -8/Materials | Scanalyzed Proton Cannon | -6/Factory | Hacked Robot Schematics ------------------ None Fabricated ------------ Lgt. Antimatter Reactor | x2 | -6/Factory | Preloaded Repaired ---------- EM Shotgun | 28% | -10/Materials Imp. Medium Laser | 31% | -9/Materials Alien Tech Used ----------------- None Achievements -------------- None Challenges ------------ None Game ------ Seed MolecularAlphaSlayer Manual? 0 Play Time 02:28:19 Cumulative 193.1 hours Start 2025.07.20 @ 14:53:30 End 2025.07.20 @ 17:22:10 Sessions 1 Manual Loads 0 Difficulty Rogue Special Mode None Game No. 137 Rogue 137 Adventurer 0 Explorer 0 Win Type - Total 2 Types 2/0/0/0/0/0/0/0/0/0 Lore% 63 Gallery% 58 Achievement% 51 Wizard Run 0 Options --------- Layout 1 ASCII 0 Keyboard 0 Movement Mouse Keybinds 0 Fullscreen 1 Font 32/SmallcapsGlow Map View 50x35 Zoom Use 0% Tactical HUD 1 Map Filters NONE Filters NONE Steam 1 RUN: 45e687bc-5176-48b6-b60b-2b3123afb093